bitfinex/quotes_SOLUSD_20250721
["timestamp","ask_amount","ask_price","bid_price","bid_amount"]
[1753092477581,5.90470429,191.24,191.23,0.66]
[1753092478309,5.22876583,191.25,191.23,0.66]
[1753092478606,6.59470429,191.24,191.22,36.88]
[1753092478795,5.90470429,191.23,191.22,36.88]
[1753092479190,5.90470429,191.23,191.21,36.88]
[1753092479506,5.90470429,191.22,191.2,184.91]
[1753092479707,5.90470429,191.21,191.2,184.91]
[1753092479893,5.90470429,191.21,191.2,185.57]
[1753092480792,5.90470429,191.21,191.2,148.03]
[1753092481800,11.13455628,191.21,191.2,148.03]
[1753092482488,5.22985199,191.21,191.2,148.03]
[1753092482689,11.13455628,191.21,191.2,148.03]
[1753092483110,11.13455628,191.21,191.2,0.03]
[1753092483387,43.75926057,191.21,191.2,0.03]
[1753092483795,17.75926057,191.21,191.2,0.03]
[1753092486709,30.83389055,191.21,191.17,0.03]
[1753092486916,31.90470429,191.18,191.17,0.03]
[1753092487291,32.62470429,191.18,191.17,0.03]
[1753092488112,32.62470429,191.18,191.16,0.03]
[1753092488320,11.85565056,191.17,191.16,0.03]
[1753092488816,26.0,191.13,191.03,0.65]
[1753092488992,16.78468397,191.16,191.03,0.65]
[1753092488993,5.90470429,191.05,191.03,0.65]
[1753092489626,5.90470429,191.04,190.99,6.6344]
[1753092489816,5.90470429,191.0,190.97,38.4391]
[1753092490028,5.90470429,190.99,190.97,38.4391]
[1753092490235,5.90470429,190.99,190.98,0.65]
[1753092490516,5.23477987,191.03,190.98,0.65]
[1753092490704,5.90470429,191.01,190.98,0.65]
[1753092490891,5.23423187,191.05,190.98,0.65]
[1753092491093,5.90470429,191.03,190.98,0.65]
[1753092491300,0.72,191.05,190.99,0.65]
[1753092492015,0.72,191.05,190.96,0.65]
[1753092492206,26.0,191.01,190.94,0.65]
[1753092492411,5.90470429,190.97,190.94,37.53]
[1753092492617,5.90470429,190.97,190.95,0.65]
[1753092492814,5.90470429,190.97,190.96,0.65]
[1753092493035,31.23553843,191.01,190.94,36.88]
[1753092493343,31.95553843,191.01,190.94,36.88]
[1753092493635,5.90470429,190.97,190.95,0.65]
[1753092494135,26.0,191.01,190.96,0.65]
[1753092494299,5.90470429,191.02,190.96,154.55470429]
[1753092494507,5.90470429,191.02,190.97,5.88636509]
[1753092494702,5.90470429,191.02,190.98,36.88]
[1753092494905,5.90470429,191.06,190.99,7.0234]
[1753092495102,5.90470429,191.06,191.0,6.55470429]
[1753092495301,5.90470429,191.06,191.0,153.90470429]
[1753092495509,5.23315512,191.09,191.01,0.65]
[1753092495802,5.90470429,191.06,191.02,36.88]
[1753092496030,5.90470429,191.06,191.03,0.65]
[1753092496204,5.90470429,191.04,191.0,148.65]
[1753092496405,5.90470429,191.03,191.01,37.53]
[1753092497131,5.90470429,191.04,191.01,37.53]
[1753092498399,5.90470429,191.04,191.02,0.65]
[1753092498604,5.90470429,191.04,191.02,37.55]
[1753092498802,5.90470429,191.05,191.02,36.9]
[1753092499010,5.90470429,191.05,191.03,0.65]
[1753092500105,5.90470429,191.05,191.04,0.65]
[1753092500306,5.90470429,191.07,191.04,0.65]
[1753092500510,5.90470429,191.07,191.05,0.65]
[1753092500714,5.90470429,191.08,191.06,37.55]
[1753092500906,31.90470429,191.07,191.04,0.65]
[1753092501222,5.90470429,191.06,191.05,36.9]
[1753092501620,11.13887913,191.06,190.99,6.3734]
[1753092501826,5.90470429,191.03,191.0,36.9]
[1753092502013,5.90470429,191.03,191.0,37.55]
[1753092502330,5.90470429,191.02,191.0,37.55]
[1753092503727,5.90470429,191.02,191.0,36.9]
[1753092503924,5.90470429,191.01,191.0,36.9]
[1753092504528,5.90470429,191.01,190.95,0.65]
[1753092504724,5.23450586,191.04,190.97,0.65]
[1753092504916,5.90470429,191.01,190.97,0.65]
[1753092505224,5.90470429,191.02,190.97,0.65]
[1753092505611,5.90470429,191.02,190.98,0.65]
[1753092505927,5.90470429,191.0,190.99,0.65]
[1753092506126,5.90470429,191.0,190.97,0.65]
[1753092506332,5.90470429,190.99,190.97,0.65]
[1753092506631,5.90470429,191.0,190.96,184.9]
[1753092506924,5.90470429,191.0,190.98,0.65]
[1753092507228,5.90470429,191.01,190.99,0.65]
[1753092507427,5.90470429,191.0,190.99,0.65]
[1753092507730,5.90470429,191.0,190.99,36.9]
[1753092507908,11.14030638,191.0,190.99,36.9]
[1753092508310,11.86030638,191.0,190.99,36.9]
[1753092508617,11.14030638,191.0,190.99,36.9]
[1753092509408,26.0,191.04,190.99,37.55]
[1753092509610,5.90470429,191.01,191.0,0.65]
[1753092509810,5.90470429,191.01,190.99,36.9]
[1753092510017,5.90470429,191.0,190.99,36.9]
[1753092510332,5.90470429,191.01,190.99,37.55]
[1753092510630,5.23422554,191.06,191.0,0.65]
[1753092510848,5.23341009,191.08,191.0,0.65]
[1753092511034,5.90470429,191.06,191.0,154.55470429]
[1753092511220,5.23341009,191.08,191.0,153.90470429]
[1753092511557,5.90470429,191.06,191.01,0.65]
[1753092511714,5.90470429,191.07,191.02,42.13505392]
[1753092511913,5.90470429,191.07,191.02,36.9]
[1753092512142,5.90470429,191.07,191.03,0.65]
[1753092512325,5.90470429,191.07,191.02,36.9]
[1753092512635,5.23341009,191.08,191.03,36.9]
[1753092512835,5.90470429,191.06,191.03,36.9]
[1753092513031,5.90470429,191.06,191.04,0.7]
[1753092513410,5.90470429,191.07,191.04,0.7]
[1753092514237,5.23380671,191.07,191.04,0.7]
[1753092514542,5.90470429,191.06,191.05,36.9]
[1753092514720,11.138511,191.07,191.05,36.9]
[1753092514917,5.90470429,191.07,191.05,37.6]
[1753092516123,5.90470429,191.07,191.05,36.9]
[1753092516329,5.90470429,191.06,191.05,36.9]
[1753092516521,5.90470429,191.07,191.05,36.9]
[1753092516722,5.90470429,191.06,191.05,36.9]
[1753092516921,5.90470429,191.07,191.05,36.9]
[1753092517122,5.90470429,191.06,191.05,36.9]
[1753092517544,5.90470429,191.07,191.05,36.9]
[1753092518044,5.90470429,191.06,191.05,36.9]
[1753092518345,11.1386622,191.06,191.05,36.9]
[1753092518523,11.13845537,191.07,191.05,36.9]
[1753092518942,2.79193897,191.12,191.06,0.7]
[1753092519238,0.06,191.12,191.08,5.90470429]
[1753092519441,0.06,191.12,191.09,37.6]
[1753092519941,0.06,191.12,191.1,0.7]
[1753092520324,0.06,191.12,191.11,23.38938826]
[1753092520522,0.06,191.16,191.15,22.68938826]
[1753092520724,0.06,191.16,191.15,59.58938826]
[1753092520918,0.06,191.16,191.15,60.28938826]
[1753092522341,0.06,191.16,191.15,65.52088185]
[1753092522653,0.06,191.16,191.15,60.28938826]
[1753092524537,0.06,191.16,191.15,202.38468397]
[1753092524734,0.06,191.16,191.15,185.6]
[1753092525846,0.06,191.16,191.15,191.50470429]
[1753092526147,0.06,191.16,191.15,185.6]
[1753092527043,0.06,191.16,191.15,37.6]
[1753092527239,0.06,191.16,191.15,36.9]
[1753092529931,5.96470429,191.16,191.15,36.9]
[1753092530750,11.19592421,191.16,191.11,0.7]
[1753092531045,5.90470429,191.14,191.12,36.88]
[1753092531242,5.90470429,191.14,191.13,36.88]
[1753092531944,6.59470429,191.14,191.13,36.88]
[1753092532446,11.82647158,191.14,191.13,36.88]
[1753092532636,11.82647158,191.14,191.11,36.88]
[1753092532836,5.90470429,191.12,191.11,36.88]
[1753092533023,6.59470429,191.12,191.05,0.7]
[1753092533230,5.90470429,191.1,191.06,36.88]
[1753092533646,5.90470429,191.09,191.06,37.58]
[1753092534044,5.90470429,191.09,191.06,36.88]
[1753092534344,5.90470429,191.09,191.07,0.7]
[1753092534548,11.13756681,191.1,191.08,36.88]
[1753092534746,5.23286252,191.1,191.08,37.58]
[1753092534921,11.13756681,191.1,191.08,37.58]
[1753092535459,11.13756681,191.1,191.08,36.88]
[1753092537027,5.23286252,191.1,191.09,0.7]
[1753092537232,5.23286252,191.1,191.08,36.88]
[1753092538232,11.13756681,191.1,191.08,36.88]
[1753092538428,5.23286252,191.1,191.08,36.88]
[1753092538654,11.13756681,191.1,191.08,36.88]
[1753092540243,5.23231477,191.12,191.08,36.88]
[1753092540441,5.90470429,191.11,191.08,36.88]
[1753092540943,5.23231477,191.12,191.08,36.88]
[1753092541147,5.90470429,191.11,191.08,36.88]
[1753092541542,11.13756588,191.11,191.08,36.88]
[1753092543268,5.90470429,191.1,191.08,36.88]
[1753092545573,11.13764494,191.1,191.08,36.88]
[1753092547204,0.71,191.09,191.08,36.88]
[1753092547540,26.0,191.06,191.04,0.03]
[1753092547739,5.90470429,191.05,191.04,0.03]
[1753092548161,11.13893616,191.05,191.04,0.03]
[1753092548761,5.23423187,191.05,191.04,0.03]
[1753092548953,5.90470429,191.09,191.04,0.72]
[1753092549147,31.90470429,191.1,191.05,5.90470429]
[1753092549347,31.90470429,191.1,191.04,0.72]
[1753092549348,31.90470429,191.1,191.06,37.57]
[1753092549568,31.90470429,191.1,191.07,0.69]
[1753092549569,26.0,191.08,191.07,0.69]
[1753092549748,5.90470429,191.09,191.06,36.88]
[1753092550061,5.90470429,191.09,191.06,37.57]
[1753092550838,11.13794939,191.09,191.06,37.57]
[1753092551659,5.90470429,191.07,191.04,0.03]
[1753092551866,5.90470429,191.07,191.05,36.88]
[1753092552368,11.13818263,191.08,191.05,37.57]
[1753092553668,5.90470429,191.07,191.05,36.88]
[1753092553963,2.73172264,191.14,191.06,23.37938826]
[1753092554141,5.90470429,191.15,191.08,16.78468397]
[1753092554342,5.96470429,191.16,191.1,22.68938826]
[1753092554956,5.90470429,191.14,191.09,36.88]
[1753092555160,5.90470429,191.13,191.09,36.88]
[1753092555474,5.90470429,191.14,191.09,36.88]
[1753092555959,5.90470429,191.14,191.09,42.11298614]
[1753092556362,5.90470429,191.15,191.09,48.01769043]
[1753092556567,11.13621115,191.15,191.1,16.78468397]
[1753092556866,26.0,191.14,191.08,148.0]
[1753092557070,0.06,191.16,191.12,5.90470429]
[1753092557262,0.06,191.16,191.13,36.88]
[1753092557661,0.06,191.16,191.13,42.78470429]
[1753092558071,26.06,191.16,191.13,42.78470429]
[1753092558369,26.06,191.16,191.13,42.11193595]
[1753092558567,0.06,191.16,191.14,5.90470429]
[1753092558749,26.06,191.16,191.14,5.90470429]
[1753092558946,26.06,191.16,191.13,36.88]
[1753092559152,26.06,191.16,191.13,42.78470429]
[1753092560168,0.06,191.16,191.13,36.88]
[1753092562577,0.06,191.16,191.13,42.11202127]
[1753092562761,0.06,191.16,191.15,22.68938826]
[1753092562966,0.06,191.16,191.15,59.56938826]
[1753092564579,0.06,191.16,191.15,53.66468397]
[1753092564781,5.96470429,191.16,191.15,36.88]
[1753092564961,0.06,191.16,191.15,36.88]
[1753092566463,5.96470429,191.16,191.12,16.78468397]
[1753092566777,5.96470429,191.16,191.1,148.0]
[1753092566778,5.90470429,191.13,191.1,36.88]
[1753092566975,5.90470429,191.11,191.1,36.88]
[1753092568153,5.90470429,191.11,191.08,0.03]
[1753092568154,26.0,191.09,191.08,0.03]
[1753092568356,31.90470429,191.09,191.08,0.03]
[1753092571268,37.1378405,191.09,191.08,0.03]
[1753092571584,5.23292805,191.1,191.08,0.03]
[1753092571882,13.08043634,191.13,191.08,0.03]
[1753092571883,5.90470429,191.09,191.08,0.03]
[1753092572065,5.90470429,191.09,191.08,36.91]
[1753092575991,5.90470429,191.09,191.08,37.61]
[1753092576593,5.90470429,191.1,191.08,37.61]
[1753092577670,26.0,191.13,191.09,0.7]
[1753092577983,5.90470429,191.1,191.08,36.91]
[1753092578285,5.90470429,191.09,191.08,53.69468397]
[1753092578988,5.90470429,191.09,191.08,36.91]
[1753092580396,11.1378405,191.09,191.08,0.03]
[1753092581798,11.7978405,191.09,191.08,0.03]
[1753092582165,11.1378405,191.09,191.08,0.03]
[1753092583464,13.08128121,191.12,191.08,0.03]
[1753092583465,26.0,191.13,191.08,0.03]
[1753092583673,5.90470429,191.09,191.08,0.73]
[1753092584196,5.90470429,191.09,191.08,0.03]
[1753092587683,5.90470429,191.09,191.08,0.73]
[1753092588395,5.90470429,191.09,191.08,0.03]
[1753092590380,5.90470429,191.09,191.08,0.73]
[1753092590998,5.90470429,191.09,191.08,0.03]
[1753092591593,6.56470429,191.09,191.06,36.41]
[1753092591785,5.90470429,191.09,191.06,36.41]
[1753092592295,5.90470429,191.09,191.07,0.7]
[1753092593085,5.90470429,191.09,191.06,36.41]
[1753092593285,5.23264677,191.11,191.07,0.7]
[1753092593595,5.90470429,191.09,191.07,0.7]
[1753092594302,5.23264677,191.11,191.07,0.7]
[1753092594485,5.89264677,191.11,191.07,0.7]
[1753092594801,5.90470429,191.08,191.07,0.7]
[1753092594989,5.90470429,191.09,191.07,0.7]
[1753092595302,5.90470429,191.09,191.06,36.41]
[1753092595494,5.90470429,191.09,191.08,0.7]
[1753092595794,5.90470429,191.1,191.08,0.7]
[1753092596994,5.90470429,191.09,191.06,185.11]
[1753092597198,5.90470429,191.09,191.07,0.7]
[1753092597373,5.90470429,191.09,191.08,37.58]
[1753092597984,5.90470429,191.09,191.08,36.88]
[1753092598591,6.56470429,191.09,191.06,148.0]
[1753092598791,5.90470429,191.08,191.07,36.88]
[1753092599273,5.89318915,191.09,191.07,36.88]
[1753092599274,5.23318915,191.09,191.07,36.88]
[1753092599476,5.90470429,191.08,191.07,36.88]
[1753092600200,5.90470429,191.08,191.06,184.88]
[1753092600700,31.89292398,191.1,191.06,184.88]
[1753092600992,11.13762827,191.1,191.06,184.88]
[1753092601195,37.13762827,191.1,191.07,0.7]
[1753092601498,0.06,191.12,191.09,22.68938826]
[1753092601701,5.29239738,191.12,191.08,0.7]
[1753092601996,5.90470429,191.11,191.09,36.88]
[1753092602382,0.06,191.12,191.1,17.48468397]
[1753092602584,0.06,191.12,191.11,54.36468397]
[1753092603801,0.06,191.12,191.11,60.24938826]
[1753092604403,0.06,191.12,191.11,65.48197682]
[1753092604914,0.06,191.12,191.11,207.57727253]
[1753092605116,0.06,191.12,191.11,213.48197682]
[1753092608210,0.06,191.12,191.11,148.0]
[1753092608503,0.06,191.12,191.11,184.88]
[1753092608800,0.06,191.12,191.11,36.88]
[1753092609198,0.06,191.12,191.11,37.56]
[1753092610281,0.06,191.12,191.11,54.34468397]
[1753092610607,0.06,191.12,191.11,59.57727253]
[1753092610792,0.06,191.12,191.11,65.48197682]
[1753092611788,0.06,191.12,191.11,59.57727253]
[1753092612125,0.06,191.12,191.11,65.48197682]
[1753092612707,0.06,191.12,191.11,176.60197682]
[1753092612890,0.06,191.12,191.11,213.46197682]
[1753092613990,0.06,191.16,191.13,16.78468397]
[1753092614196,0.06,191.16,191.15,22.68938826]
[1753092614612,0.06,191.16,191.15,17.46468397]
[1753092614819,0.06,191.16,191.15,23.36938826]
[1753092615394,0.06,191.16,191.15,171.30938826]
[1753092615601,0.06,191.16,191.15,178.14518185]
[1753092616286,0.06,191.16,191.15,203.60047756]
[1753092616487,0.06,191.16,191.15,147.94]
[1753092616695,0.06,191.16,191.14,16.78468397]
[1753092617001,0.06,191.16,191.15,36.86]
[1753092618211,0.06,191.16,191.15,37.54]
[1753092618919,0.06,191.16,191.15,59.55617756]
[1753092619217,0.06,191.16,191.15,65.46088185]
[1753092620913,0.06,191.16,191.15,54.32468397]
[1753092621911,6.61470429,191.16,191.13,147.94]
[1753092622117,0.65,191.15,191.14,36.86]
[1753092622906,5.96470429,191.16,191.14,36.86]
[1753092623716,6.61470429,191.16,191.14,36.86]
[1753092624094,0.06,191.16,191.14,36.86]
[1753092624709,0.06,191.16,191.15,16.78468397]
[1753092625015,0.06,191.16,191.15,164.78468397]
[1753092627001,0.06,191.16,191.15,201.64468397]
[1753092627201,6.61470429,191.16,191.15,148.0]
[1753092627402,6.61470429,191.16,191.15,184.86]
[1753092628315,0.06,191.16,191.15,184.86]
[1753092628621,0.06,191.16,191.15,185.54]
[1753092629315,0.06,191.16,191.15,36.86]
[1753092629823,6.61470429,191.16,191.15,36.86]
[1753092630701,11.84592421,191.16,191.15,36.86]
[1753092632218,11.19592421,191.16,191.15,36.86]
[1753092633026,11.19592421,191.16,191.12,0.03]
[1753092633027,6.00121992,191.16,191.12,0.03]
[1753092633210,5.90470429,191.13,191.12,0.03]
[1753092633722,6.61470429,191.13,191.12,0.03]
[1753092635201,11.8467453,191.13,191.12,0.03]
[1753092637747,5.96470429,191.16,191.12,0.03]
[1753092637912,0.06,191.16,191.13,36.86]
[1753092638236,11.19599466,191.16,191.13,36.86]
[1753092638434,11.90599466,191.16,191.13,36.86]
[1753092638612,0.71,191.15,191.13,36.86]
[1753092638807,5.29129037,191.16,191.12,0.03]
[1753092638808,26.0,191.13,191.12,0.03]
[1753092639017,31.90470429,191.13,191.12,0.03]
[1753092639235,37.1367453,191.13,191.12,0.03]
[1753092639538,37.8467453,191.13,191.12,0.03]
[1753092643738,37.1367453,191.13,191.12,0.03]
[1753092644221,37.8467453,191.13,191.12,0.03]
[1753092646228,43.75144959,191.13,191.12,0.03]
[1753092646746,37.8467453,191.13,191.12,0.03]
[1753092647445,31.23313621,191.09,191.08,0.03]
[1753092647739,37.1378405,191.09,191.08,0.03]
[1753092647944,37.8478405,191.09,191.08,0.03]
[1753092649835,5.90470429,191.09,191.08,0.03]
[1753092651051,31.23296198,191.1,191.08,0.03]
[1753092651347,5.90470429,191.09,191.08,0.03]
[1753092652018,6.61470429,191.09,191.08,0.03]
[1753092652656,0.71,191.09,191.08,0.03]
[1753092652821,37.8478405,191.09,191.08,0.03]
[1753092653229,37.1378405,191.09,191.08,0.03]
[1753092653847,37.8478405,191.09,191.08,0.03]
[1753092654246,26.0,191.09,191.08,0.03]
[1753092654552,31.90470429,191.09,191.08,0.03]
[1753092654749,37.1378405,191.09,191.08,0.03]
[1753092654934,26.0,191.06,191.04,0.03]
[1753092655133,5.90470429,191.05,191.04,0.03]
[1753092655335,63.57,191.05,191.04,0.03]
[1753092655545,69.47470429,191.05,191.04,0.03]
[1753092656728,43.47470429,191.05,191.04,0.03]
[1753092657035,48.70893616,191.05,191.04,0.03]
[1753092658235,48.70893616,191.05,191.04,1e-08]
[1753092660657,26.0,191.01,191.0,0.03]
[1753092660953,42.78468397,190.98,190.88,0.2]
[1753092661258,5.90470429,190.91,190.88,0.91]
[1753092661438,5.90470429,190.93,190.89,0.71]
[1753092661749,5.90470429,190.98,190.91,8.0203]
[1753092662053,5.90470429,190.96,190.92,0.71]
[1753092662229,5.90470429,190.93,190.89,17.49468397]
[1753092662648,26.71,190.96,190.9,0.71]
[1753092662857,5.90470429,190.94,190.9,0.71]
[1753092663347,5.90470429,190.94,190.91,0.72]
[1753092663524,5.90470429,190.96,190.91,0.72]
[1753092663727,5.90470429,190.94,190.92,0.72]
[1753092664053,5.90470429,190.93,190.89,0.72]
[1753092664351,36.92,190.98,190.89,0.72]
[1753092664352,5.90470429,190.92,190.89,0.72]
[1753092664647,5.90470429,190.9,190.88,37.12]
[1753092664823,5.90470429,190.91,190.89,0.72]
[1753092665025,5.90470429,190.9,190.88,37.12]
[1753092665229,31.23796422,190.92,190.89,0.72]
[1753092665434,5.90470429,190.91,190.89,0.72]
[1753092666050,5.90470429,190.9,190.89,0.72]
[1753092666355,5.90470429,190.9,190.88,0.2]
[1753092666930,0.52,190.9,190.88,0.2]
[1753092667130,26.0,190.89,190.88,0.2]
[1753092667338,31.90470429,190.89,190.88,0.2]
[1753092667555,37.14332339,190.89,190.88,0.2]
[1753092668040,26.0,190.92,190.88,0.92]
[1753092668252,5.90470429,190.91,190.88,0.92]
[1753092668564,5.90470429,190.9,190.88,0.2]
[1753092668745,5.90470429,190.9,190.88,0.92]
[1753092668930,5.90470429,190.91,190.89,0.72]
[1753092669132,5.90470429,190.92,190.89,0.72]
[1753092669331,5.90470429,190.92,190.9,0.72]
[1753092669753,31.23761308,190.93,190.9,0.72]
[1753092669952,5.90470429,190.92,190.9,0.72]
[1753092670539,5.90470429,190.93,190.91,0.72]
[1753092670743,5.90470429,190.94,190.92,0.72]
[1753092670946,5.90470429,190.95,190.92,0.72]
[1753092671139,5.90470429,190.95,190.93,0.72]
[1753092671345,5.90470429,190.94,190.93,0.72]
[1753092671546,5.90470429,190.96,190.93,0.72]
[1753092671752,5.90470429,190.97,190.93,0.72]
[1753092671943,5.90470429,190.99,190.93,6.62470429]
[1753092672132,31.90470429,190.99,190.94,0.72]
[1753092672656,5.90470429,190.98,190.94,0.72]
[1753092672857,5.90470429,191.0,190.95,16.78468397]
[1753092673150,31.90470429,191.01,190.96,0.72]
[1753092673343,5.90470429,191.0,190.97,37.06]
[1753092673946,5.90470429,191.0,190.98,0.72]
[1753092674775,5.90470429,191.01,190.97,37.06]
[1753092674953,3.44266661,191.04,190.99,0.72]
[1753092675155,5.90470429,191.02,191.0,0.72]
[1753092675335,31.90470429,191.03,191.01,0.72]
[1753092675537,26.0,191.03,191.01,0.72]
[1753092675844,31.90470429,191.03,191.01,0.72]
[1753092676963,26.0,191.03,191.01,0.72]
[1753092677274,31.90470429,191.03,191.02,37.78]
[1753092677446,26.0,191.03,191.02,37.78]
[1753092677850,5.90470429,191.04,191.02,37.78]
[1753092678343,0.06,191.05,191.02,37.06]
[1753092678540,5.90470429,191.03,190.98,37.04]
[1753092678747,5.29423899,191.05,190.98,37.04]
[1753092678748,5.90470429,191.0,190.98,37.04]
[1753092678951,5.90470429,191.0,190.98,37.76]
[1753092679155,26.0,191.02,190.99,0.72]
[1753092679355,5.90470429,191.01,190.99,0.72]
[1753092679757,5.90470429,191.0,190.98,37.04]
[1753092680252,5.90470429,191.0,190.96,165.50468397]
[1753092680454,5.90470429,191.0,190.97,37.78]
[1753092681042,5.90470429,191.0,190.98,0.72]
[1753092681241,5.90470429,191.01,190.99,0.72]
[1753092682368,26.0,191.02,190.99,0.72]
[1753092682546,5.90470429,191.01,191.0,0.72]
[1753092683068,5.90470429,191.01,190.98,0.72]
[1753092683254,5.90470429,191.01,190.99,0.72]
[1753092684051,5.90470429,191.01,190.97,42.29635457]
[1753092684252,5.90470429,191.01,191.0,0.72]
[1753092684560,31.90470429,191.02,191.0,37.74]
[1753092685252,26.0,191.02,191.01,0.72]
[1753092685448,5.90470429,191.03,191.01,0.72]
[1753092685856,31.90470429,191.03,191.01,0.72]
[1753092687246,5.96470429,191.05,191.02,0.72]
[1753092687466,0.06,191.05,191.03,37.72]
[1753092687664,0.06,191.05,191.04,0.72]
[1753092687966,5.96470429,191.05,191.03,37.72]
[1753092688149,11.19893616,191.05,191.03,37.72]
[1753092688669,5.96470429,191.05,191.03,0.72]
[1753092688970,6.61470429,191.04,190.99,37.0]
[1753092689271,5.90470429,191.01,190.99,37.0]
[1753092689469,5.90470429,191.01,190.99,37.72]
[1753092689849,5.94477987,191.03,190.99,37.72]
[1753092690052,5.90470429,191.0,190.97,0.72]
[1753092690274,5.94477987,191.03,190.98,37.0]
[1753092690474,5.90470429,191.0,190.99,37.0]
[1753092692045,0.06,191.05,190.99,43.60470429]
[1753092692246,0.06,191.05,191.0,23.40938826]
[1753092692468,0.06,191.05,191.0,17.50468397]
[1753092692687,0.06,191.05,191.03,16.78468397]
[1753092692979,0.06,191.05,191.04,37.04]
[1753092693161,0.06,191.05,191.04,37.75]
[1753092695869,0.06,191.05,191.02,16.78468397]
[1753092696070,0.06,191.05,191.04,37.02]
[1753092696461,5.96470429,191.05,191.02,148.0]
[1753092696774,5.96470429,191.05,191.04,37.02]
[1753092697776,0.06,191.05,191.04,37.73]
[1753092697958,5.96470429,191.05,191.04,37.02]
[1753092698369,0.06,191.09,191.05,16.78468397]
[1753092698589,0.06,191.09,191.08,22.68938826]
[1753092698772,0.06,191.09,191.08,59.70938826]
[1753092699092,0.06,191.09,191.08,60.41938826]
[1753092699258,0.06,191.09,191.08,54.51468397]
[1753092699664,0.06,191.09,191.08,17.49468397]
[1753092699865,0.06,191.09,191.08,54.51468397]
[1753092702685,0.06,191.09,191.08,17.49468397]
[1753092702886,0.06,191.09,191.08,53.78468397]
[1753092703065,0.06,191.09,191.08,54.49468397]
[1753092704599,0.06,191.09,191.08,60.39938826]
[1753092704768,0.06,191.09,191.08,65.63279835]
[1753092704974,0.06,191.09,191.08,54.49468397]
[1753092705161,0.06,191.09,191.08,60.39938826]
[1753092705368,0.06,191.09,191.08,54.49468397]
[1753092705775,0.06,191.09,191.08,65.63279835]
[1753092706071,0.06,191.09,191.08,59.72809406]
[1753092706271,0.06,191.09,191.08,54.49468397]
[1753092706872,0.06,191.09,191.08,59.72809406]
[1753092707183,0.06,191.09,191.08,65.63279835]
[1753092708080,0.06,191.09,191.08,213.63279835]
[1753092708782,0.06,191.09,191.06,0.71]
[1753092708987,0.06,191.09,191.07,60.37938826]
[1753092709193,0.06,191.09,191.08,16.78468397]
[1753092709582,0.06,191.09,191.08,17.49468397]
[1753092709988,0.06,191.09,191.08,23.39938826]
[1753092712185,0.06,191.09,191.08,17.49468397]
[1753092712375,0.06,191.09,191.08,28.63279835]
[1753092713693,0.06,191.09,191.08,176.63279835]
[1753092716805,0.06,191.16,191.09,180.6411]
[1753092717102,0.06,191.16,191.15,22.68938826]
[1753092717311,0.06,191.16,191.15,207.62938826]
[1753092717604,0.06,191.16,191.15,208.33938826]
[1753092718503,0.06,191.16,191.15,213.57088185]
[1753092721910,0.06,191.16,191.15,215.12568185]
[1753092722105,1e-08,191.17,191.16,55.26368826]
[1753092722299,1e-08,191.17,191.16,56.49681025]
[1753092722499,1e-08,191.17,191.16,87.51210596]
[1753092722701,1e-08,191.17,191.16,93.41681025]
[1753092722908,1e-08,191.17,191.16,98.64803017]
[1753092725688,0.06,191.2,191.19,170.01508303]
[1753092725888,0.06,191.2,191.19,206.91508303]
[1753092726207,0.06,191.2,191.19,213.48978732]